Cogmind - Beta 12 @@@ ROGUE MODE // 2023.11.14 @ 22:24:56 Player: Blaj Result: Destroyed by G-47 Trooper with Particle Gun Performance ------------- Evolutions (1) 500 Regions Visited (6) 1200 Robots Destroyed (88) 440 Value Destroyed (1907) 1907 Prototype IDs (39) 780 Alien Tech Used (0) 0 Bonus (488) 488 TOTAL SCORE: 5315 Bonus ------- High Alert Combat Kills 55 Follower Combat Kills 133 Aligned with FarCom 300 Cogmind --------- Core Integrity 0/400 Matter 204/300 Energy 302/310 System Corruption 0% Temperature Cool (27) Movement Treading (250) Ox1 Location -8/Mines Parts ------- > --- POWER (1) -------- Reinforced Fission Core > --- PROPULSION (3) --- Armored Treads Armored Treads Armored Treads > --- UTILITY (3) ------ Cooling System Huge Storage Unit Advanced Weapon Cycler > --- WEAPON (2) ------- 8R-AWN's Boregun 8R-AWN's Boregun > --- INVENTORY (25) --- Light Treads Light Treads Light Treads Improved Treads Armored Treads Experimental Heat Sink Cooling System High-capacity Matter Pod (200) Structural Scanner Experimental Targeting Computer Experimental Core Analyzer Shield Generator Advanced Component Analysis Suite AS-neutralizer No. 17b Spread Laser Spread Laser Improved Grenade Launcher Improved Grenade Launcher AD-0RF's Magmablaster Mining Claw Peak State ------------ > --- POWER ------------ Reinforced Fission Core > --- PROPULSION ------- Armored Treads Armored Treads Advanced Myomer Leg > --- UTILITY ---------- Huge Storage Unit Salvage Targeting Computer Advanced Weapon Cycler > --- WEAPON ----------- 8R-AWN's Boregun 8R-AWN's Boregun > --- INVENTORY -------- Heavy Ion Engine Light Treads Light Treads Improved Treads Armored Treads Armored Treads Experimental Heat Sink Cooling System Cooling System High-capacity Matter Pod Structural Scanner Experimental Targeting Computer Shield Generator AS-neutralizer No. 17b Spread Laser Spread Laser Spread Laser Spread Laser Improved Assault Rifle Improved Assault Rifle Improved Assault Rifle Improved Grenade Launcher Improved Grenade Launcher Mining Claw [Rating: 57] Favorites ----------- Power Heavy Ion Engine Engine Heavy Ion Engine Power Core Light Neutrino Core Reactor Cold Fusion Reactor Propulsion Light Treads Treads Light Treads Leg Aluminum Leg Utility Huge Storage Unit Device Cooling System Storage Huge Storage Unit Processor Salvage Targeting Computer Protection Light Armor Plating Weapon Spread Laser Energy Gun Spread Laser Ballistic Gun 8R-AWN's Boregun Launcher Improved Grenade Launcher Special Weapon AD-0RF's Magmablaster Build | -11 -10 -10 -9 -9 -9 -8 ------- Run | Jun Mat Min Mat Min Exi Min Slots Evolved 2 | . . . 2 . . . Power . | . . . . . . . Propulsion 1 | . . . 1 . . . Utility 1 | . . . 1 . . . Weapon . | . . . . . . . Parts Attached 106 | 3 14 1 40 10 34 4 Power 7 | . . . 2 . 4 1 Engine 3 | . . . 2 . 1 . Core 3 | . . . . . 2 1 Reactor 1 | . . . . . 1 . Propulsion 19 | 2 2 . 9 1 5 . Treads 18 | 2 2 . 9 1 4 . Leg 1 | . . . . . 1 . Wheel . | . . . . . . . Hover . | . . . . . . . Flight . | . . . . . . . Utility 54 | 1 7 1 22 5 17 1 Device 41 | 1 5 1 19 3 11 1 Storage 3 | . 2 . . . 1 . Processor 1 | . . . . . 1 . Hackware . | . . . . . . . Protection 9 | . . . 3 2 4 . Artifact . | . . . . . . . Weapon 26 | . 5 . 7 4 8 2 Energy Gun 13 | . 5 . 6 2 . . Energy Cannon . | . . . . . . . Ballistic Gun 8 | . . . . . 7 1 Ballistic Cannon . | . . . . . . . Launcher 4 | . . . 1 2 1 . Special Weapon 1 | . . . . . . 1 Impact Weapon . | . . . . . . . Slashing Weapon . | . . . . . . . Piercing Weapon . | . . . . . . . Special Melee Weapon . | . . . . . . . Unidentified Prototypes 10 | . . . 1 . 8 1 Parts Lost 11 | . . . 3 4 3 1 Power 1 | . . . . . . 1 Propulsion 1 | . . . . 1 . . Utility 9 | . . . 3 3 3 . Weapon . | . . . . . . . Highest Loss Streak 3 | . . . 1 3 1 1 To Critical Strikes . | . . . . . . . Average Slot Usage (%) 99 | . 99 100 99 99 99 99 Engine 10 | . 14 14 11 11 6 . Core 1 | . . . . . 4 10 Treads 31 | . 27 28 32 32 33 33 Device 12 | . 14 14 10 11 13 22 Storage 11 | . 14 14 11 11 6 11 Processor 1 | . . . . . 6 . Protection 5 | . . . 10 10 5 . Energy Gun 17 | . 26 28 22 11 2 . Ballistic Gun 4 | . 1 . . . 15 21 Launcher 2 | . . . . 10 3 . Naked Turns . | . . . . . . . Heaviest Build 122 | 11 91 90 99 104 114 122 Greatest Support 60 | 40 40 40 60 60 60 60 Greatest Overweight (x) 2 | . 2 2 1 1 1 2 Average Overweight (x) . | . . 2 1 1 . 1 Largest Inventory Capacity 25 | 8 25 25 25 25 25 25 Average Capacity 21 | 8 16 25 25 25 17 25 Most Carried 25 | 6 15 17 25 25 25 20 Average Carried 18 | 5 13 16 24 22 15 19 Final Capacity 25 | 8 25 25 25 25 25 25 Final Carried 25 | 4 15 17 25 21 20 20 Class Distribution -------------------- 89% | Mutant 10% | Scavenger-Mutant Dominant Class ---------------- Mutant | -10/Materials Mutant | -10/Mines Mutant | -9/Materials Mutant | -9/Mines Mutant | -9/Exiles Scavenger-Mutant | -8/Mines Resources | -11 -10 -10 -9 -9 -9 -8 ----------- Run | Jun Mat Min Mat Min Exi Min Matter Collected 2422 | 207 172 3 394 184 1259 203 Remotely . | . . . . . . . Salvage Created 2825 | 167 404 22 1202 156 535 339 Parts 211 | 11 22 2 87 7 61 21 Haulers Intercepted 8 | . 2 . 6 . . . Recyclers Shooed 4 | . . . 3 1 . . Parts Field Recycled . | . . . . . . . Retrieved Matter . | . . . . . . . Parts Self-Destructed . | . . . . . . . Prevented . | . . . . . . . Kills | -11 -10 -10 -9 -9 -9 -8 ------- Run | Jun Mat Min Mat Min Exi Min Combat Hostiles Destroyed 70 | . 11 . 28 21 5 5 Guns 52 | . 11 . 28 6 2 5 AOE 18 | . . . . 15 3 . Classes Destroyed 15 | 2 4 . 4 3 2 . Worker 4 | . . . 3 . . 1 Builder 2 | . . . . 1 . 1 Tunneler 7 | 4 1 1 1 . . . Hauler 8 | . 2 . 6 . . . Recycler 3 | 1 1 . 1 . . . Operator 1 | . . . 1 . . . Turret 1 | . . . . . 1 . Watcher 7 | . 3 . 4 . . . Swarmer 13 | . 6 . 7 . . . Grunt 23 | . 5 . 11 3 . 4 Duelist 2 | . . . 1 . . 1 Sentry 9 | . . . 9 . . . Demolisher 2 | . . . . 2 . . Zionite 3 | . . . . . 3 . Assembled 20 | . . . . 16 4 . Best Kill Streak 15 | 3 4 1 6 15 3 3 Combat Bots Only 15 | . 3 . 6 15 3 3 Max Kills in Single Turn 7 | 1 1 1 2 7 3 1 Gunslinging 1 | . . . 1 . . . Exploded 7 | . . . . 7 3 . Melee . | . . . . . . . Uniques/NPCs Destroyed 4 | . . . . . 4 . 8R-AWN (-9/Exiles) EX-HEX (-9/Exiles) EX-BIN (-9/Exiles) EX-DEC (-9/Exiles) Combat | -11 -10 -10 -9 -9 -9 -8 -------- Run | Jun Mat Min Mat Min Exi Min Damage Taken 3734 | . 277 28 1068 794 906 661 Core 440 | . 23 15 143 67 107 85 Absorbed by Shields 280 | . . . . . 264 16 Regen/Repaired (Parts) 318 | . 182 . 136 . . . Core Remaining (%) 92 | 100 . 84 . . . . Volleys Fired 304 | 16 38 1 70 14 142 23 Largest 2 | 2 2 2 2 2 2 2 Hottest 220 | 60 130 130 130 130 60 220 Shots Fired 528 | 32 76 2 139 28 206 45 Gun 516 | 32 76 2 138 20 204 44 Cannon . | . . . . . . . Launcher 11 | . . . 1 8 2 . Special 1 | . . . . . . 1 Kinetic 272 | 16 8 . . . 204 44 Thermal 245 | 16 68 2 138 20 . 1 Explosive 11 | . . . 1 8 2 . Electromagnetic . | . . . . . . . Robot Hit Streak 29 | 7 9 3 14 10 29 4 Robot Miss Streak 9 | 2 8 2 7 9 5 3 Penetration Max 1 | . . . . . . 1 Secondary Targets 6 | . 1 . 4 1 . . Max Gunslinging Chain 1 | . 1 . 1 1 . . Shots Hit Robots 414 | 24 63 2 125 20 154 26 Core Hits 348 | 11 61 3 175 49 36 13 Critical Kills 7 | . . . . . 3 4 Critical Parts Destroyed 10 | . . . . . 4 6 Critical Strikes 18 | . . . . . 7 11 Destroy 18 | . . . . . 7 11 Melee Attacks . | . . . . . . . Impact . | . . . . . . . Slashing . | . . . . . . . Piercing . | . . . . . . . Sneak Attacks . | . . . . . . . Combat Hostiles . | . . . . . . . Follow-up Attacks . | . . . . . . . Damage Inflicted 7287 | 227 785 47 2030 1101 2562 535 Guns 6016 | 223 752 28 1921 208 2396 488 Cannons . | . . . . . . . Explosions 1077 | . . . . 878 166 33 Melee . | . . . . . . . Ramming 180 | 4 33 19 109 15 . . Kinetic 2999 | 93 22 . . . 2396 488 Thermal 3064 | 130 730 28 1921 208 . 47 Explosive 1044 | . . . . 878 166 . Electromagnetic . | . . . . . . . Impact . | . . . . . . . Slashing . | . . . . . . . Piercing . | . . . . . . . Highest Corruption . | . . . . . . . Average Corruption . | . . . . . . . Corruption Purged . | . . . . . . . Corruption Blocked . | . . . . . . . Overload Shots . | . . . . . . . Overflow Damage 6 | . 1 . . 4 1 . Projectiles . | . . . . . . . Explosions 5 | . . . . 4 1 . Melee 1 | . 1 . . . . . Knockbacks . | . . . . . . . Impact . | . . . . . . . Kinetic . | . . . . . . . Secondary . | . . . . . . . Self-Inflicted Damage 5 | . 5 . . . . . Shots . | . . . . . . . Rammed 23 | 1 5 4 11 2 . . Targets Rammed 25 | 1 5 4 12 3 . . Kicked . | . . . . . . . Crushed 2 | . . . 1 1 . . Highest Temperature 411 | 60 207 69 288 411 160 150 Average Temperature 45 | 27 41 34 32 130 38 61 Received Heat Transfer 1408 | . 66 27 354 120 14 827 Siege Activations . | . . . . . . . Robots Corrupted . | . . . . . . . Combat Hostiles . | . . . . . . . Parts Fried . | . . . . . . . Impact Corruptions 1 | . 1 . . . . . Robots Melted . | . . . . . . . Combat Hostiles . | . . . . . . . Parts Melted 3 | . 1 . 2 . . . Heat Transferred 4017 | 300 920 35 2370 250 . 142 Parts Sabotaged . | . . . . . . . Parts Stolen . | . . . . . . . Parts Stripped . | . . . . . . . Power Chain Reactions . | . . . . . . . Missiles Intercepted . | . . . . . . . Alert | -11 -10 -10 -9 -9 -9 -8 ------- Run | Jun Mat Min Mat Min Exi Min Peak Influence 558 | 25 194 5 558 208 . 234 Initial 203 | . 16 . . 203 . . Average 103 | 12 73 . 223 73 . 91 Maximum Alert Level 2 | . . . 2 1 . 1 Low Security (%) 81 | 100 100 100 59 71 . 94 Level 1 8 | . . . 12 28 . 5 Level 2 9 | . . . 28 . . . Level 3 . | . . . . . . . Level 4 . | . . . . . . . Level 5 . | . . . . . . . High Security . | . . . . . . . Max Security . | . . . . . . . Squads Dispatched 9 | . 1 . 7 1 . . Investigation 4 | . . . 3 1 . . Extermination . | . . . . . . . Reinforcement 5 | . 1 . 4 . . . Assault . | . . . . . . . Garrison . | . . . . . . . Intercept . | . . . . . . . Searches Triggered . | . . . . . . . Construction Impeded . | . . . . . . . Haulers Reinforced . | . . . . . . . Active Scanning Responses . | . . . . . . . Cargo Convoy Interrupts . | . . . . . . . Stealth | -11 -10 -10 -9 -9 -9 -8 --------- Run | Jun Mat Min Mat Min Exi Min Distress Signals 4 | . 1 . 3 . . . Communications Jammed . | . . . . . . . Distress Signals . | . . . . . . . Times Spotted 140 | . 22 1 40 23 45 9 Peak Tracking Total 14 | . 3 2 5 14 9 4 Tactical Retreats 22 | . 2 . 1 1 17 1 Traps | -11 -10 -10 -9 -9 -9 -8 ------- Run | Jun Mat Min Mat Min Exi Min Traps Triggered 1 | . . . 1 . . . Indirectly . | . . . . . . . Trap Hack Attempts . | . . . . . . . Triggered . | . . . . . . . Disarmed . | . . . . . . . Reprogrammed . | . . . . . . . Reused . | . . . . . . . Traps Extracted . | . . . . . . . Installed . | . . . . . . . Triggered . | . . . . . . . Exploded 3 | . . . . . 3 . Machines | -11 -10 -10 -9 -9 -9 -8 ---------- Run | Jun Mat Min Mat Min Exi Min Machines Disabled 12 | . . . 1 . 7 4 Max in Single Turn 4 | . . . 1 . 1 4 Machines Repaired . | . . . . . . . Machines Sabotaged . | . . . . . . . Overloaded Fab Kills . | . . . . . . . Hacking | -11 -10 -10 -9 -9 -9 -8 --------- Run | Jun Mat Min Mat Min Exi Min Machines Accessed 23 | . 9 . 12 1 1 . Terminals 15 | . 7 . 8 . . . Fabricators . | . . . . . . . Repair Stations 3 | . 1 . 2 . . . Recycling Units 2 | . 1 . 1 . . . Scanalyzers 1 | . . . 1 . . . Garrison Access . | . . . . . . . Total Hacks 73 | . 30 . 41 1 1 . Successful 44 | . 21 . 21 1 1 . Failed 28 | . 8 . 20 . . . Catastrophic 8 | . . . 8 . . . Database Lockouts 1 | . 1 . . . . . Manual 16 | . 6 . 9 . 1 . Terminals 44 | . 16 . 28 . . . Fabricators . | . . . . . . . Repair Stations 18 | . 13 . 5 . . . Recycling Units 2 | . 1 . 1 . . . Scanalyzers 7 | . . . 7 . . . Garrison Access . | . . . . . . . Terminal Hacks 20 | . 9 . 9 1 1 . Robot Analysis 3 | . 2 . 1 . . . Prototype ID Bank 3 | . 1 . 2 . . . Open Door 1 | . . . . 1 . . Terminal Index 2 | . 1 . 1 . . . Unreport Threat 1 | . . . 1 . . . Locate Traps 4 | . 3 . 1 . . . Transport Status 1 | . . . 1 . . . Hauler Manifests 1 | . . . 1 . . . Zone Layout 3 | . 2 . 1 . . . EX-Prototype ID Bank 1 | . . . . . 1 . Fabricator Hacks . | . . . . . . . Repair Station Hacks 14 | . 10 . 4 . . . Scan Component 7 | . 5 . 2 . . . Repair 7 | . 5 . 2 . . . Recycling Unit Hacks 2 | . 1 . 1 . . . Report Inventory 2 | . 1 . 1 . . . Scanalyzer 7 | . . . 7 . . . Insert Component 3 | . . . 3 . . . Analyze 4 | . . . 4 . . . Garrison Access Hacks . | . . . . . . . Unauthorized Hacks 1 | . 1 . . . . . Terminals 1 | . 1 . . . . . Botnet 1 | . 1 . . . . . Fabricators . | . . . . . . . Repair Stations . | . . . . . . . Recycling Units . | . . . . . . . Scanalyzers . | . . . . . . . Garrison Access . | . . . . . . . Data Cores Recovered . | . . . . . . . Used . | . . . . . . . Hacking Detections 18 | . 8 . 10 . . . Full Trace Events 2 | . . . 2 . . . Feedback Events . | . . . . . . . Feedback Blocked . | . . . . . . . Robot Schematics Acquired . | . . . . . . . Robots Built . | . . . . . . . Authchips . | . . . . . . . Time . | . . . . . . . Total Robot Build Rating . | . . . . . . . Part Schematics Acquired 3 | . . . 3 . . . Parts Built . | . . . . . . . Authchips . | . . . . . . . Time . | . . . . . . . Total Part Build Rating . | . . . . . . . Parts Repaired 7 | . 5 . 2 . . . Time 224 | . 172 . 52 . . . Parts Recycled . | . . . . . . . Recycled Matter . | . . . . . . . Retrieved Matter . | . . . . . . . Retrieved Components . | . . . . . . . Parts Scanalyzed 3 | . . . 3 . . . Part Schematics Acquired 3 | . . . 3 . . . Parts Damaged . | . . . . . . . Bothacking | -11 -10 -10 -9 -9 -9 -8 ------------ Run | Jun Mat Min Mat Min Exi Min Used RIF Installer . | . . . . . . . Robots Hacked . | . . . . . . . Non-combat . | . . . . . . . Combat . | . . . . . . . Robot Hacks Applied . | . . . . . . . Relay Couplers Released . | . . . . . . . Fabnet Peak Effective % . | . . . . . . . Robots Rewired . | . . . . . . . Allies Hacked . | . . . . . . . Hacks Repelled . | . . . . . . . Allies | -11 -10 -10 -9 -9 -9 -8 -------- Run | Jun Mat Min Mat Min Exi Min Total Allies 2 | . . 2 . . . . Largest Group 2 | . . 2 2 . . . Highest-Rated Group 38 | . . 38 38 . . . Highest-Rated Ally 31 | . . 31 31 . . . Total Orders . | . . . . . . . Ally Attacks 13 | . . 1 12 . . . Total Damage 251 | . . 22 229 . . . Kills 6 | . . . 6 . . . Allies Corrupted . | . . . . . . . Allies Melted . | . . . . . . . Intel | -11 -10 -10 -9 -9 -9 -8 ------- Run | Jun Mat Min Mat Min Exi Min Robot Analysis Total 3 | . 2 . 1 . . . Derelict Logs Recovered 4 | . . 2 . 2 . . Drone Launches . | . . . . . . . Drone Recoveries . | . . . . . . . Exploration | -11 -10 -10 -9 -9 -9 -8 ------------- Run | Jun Mat Min Mat Min Exi Min Turns Passed 11273 | 101 1767 2198 2801 1381 2708 317 Spaces Moved 4016 | 13 724 681 916 546 1034 102 Core . | . . . . . . . Treads 4010 | 7 724 681 916 546 1034 102 Legs 6 | 6 . . . . . . Wheels . | . . . . . . . Hover . | . . . . . . . Flight . | . . . . . . . Fastest Speed 120 | 120 160 320 240 240 170 250 Average Speed 237 | 141 188 320 240 240 213 253 Slowest Speed 330 | 160 320 320 240 240 250 330 Overloaded Moves . | . . . . . . . Propulsion Burnouts . | . . . . . . . Robots Hopped . | . . . . . . . Cave-ins Triggered . | . . . . . . . Exploration Rate (%) 69 | 4 90 99 93 95 83 22 Regions Visited 6 Branch Regions 4 Pre-discovered Areas 1 | . . . . 1 . . Known Exits Taken . | . . . . . . . Unknown Exits Taken 6 | 1 1 1 1 1 1 . Scrap Searched 3 | . . 2 . 1 . . Spaces Dug 33 | . . . 8 25 . . Terrain Destroyed 140 | . . . 8 57 33 42 Melee . | . . . . . . . Projectile 39 | . . . . . 19 20 AOE 97 | . . . 8 57 14 18 Terrain Rammed 1 | . 1 . . . . . Walls Destroyed . | . . . . . . . Machines Disabled . | . . . . . . . Actions | -11 -10 -10 -9 -9 -9 -8 --------- Run | Jun Mat Min Mat Min Exi Min Total 5275 | 67 1047 690 1363 584 1392 132 Wait 658 | 33 243 2 281 9 88 2 Move 4011 | 13 723 680 915 545 1033 102 Hop . | . . . . . . . Pick Up 90 | . 16 2 25 1 45 1 Fast Attach 23 | 1 5 . 3 . 14 . Attach 18 | 2 . . 7 4 4 1 Detach 9 | . . . . . 9 . Swap 65 | . 9 1 30 6 16 3 Drop 72 | 2 7 . 20 2 41 . Fire 304 | 16 38 1 70 14 142 23 Melee . | . . . . . . . Ram 1 | . 1 . . . . . Kick . | . . . . . . . Crush 24 | . 5 4 12 3 . . Escape Stasis . | . . . . . . . Rewire . | . . . . . . . Trap . | . . . . . . . Miscellaneous . | . . . . . . . Route ------- -11/Junkyard -10/Materials (discovered 3 exits: *Mat x2 / [*Min]) -10/Mines (discovered 2 exits: *Mat x2) -9/Materials (discovered 4 exits: [*Mat x3] / *Min) -9/Mines (discovered 3 exits: [*Mat] / *Exi / [*Zio]) -9/Exiles -8/Mines History --------- Turn | Location | Event 24 | -11/Junkyard | Discovered new exit (range 3) 102 | -11/Junkyard | Entered Materials 244 | -10/Materials | Discovered new exit (range 12) 318 | -10/Materials | Build established: Mutant 772 | -10/Materials | Discovered new exit (range 11) 944 | -10/Materials | Repaired Broken Spread Laser 989 | -10/Materials | Repaired Broken Spread Laser 1016 | -10/Materials | Repaired Lgt. Treads 1043 | -10/Materials | Repaired Lgt. Treads 1077 | -10/Materials | Repaired Spread Laser 1166 | -10/Materials | Central database locked down 1333 | -10/Materials | Discovered new exit (range 4) 1869 | -10/Materials | Entered Mines 2127 | -10/Mines | Learned Materials garrison access intel 2284 | -10/Mines | Discovered new exit (range 12) 2760 | -10/Mines | Joined a pair of Derelicts in attacking an 0b10 outpost 3030 | -10/Mines | Learned Materials emergency access door positions 3075 | -10/Mines | Discovered new exit (range 15) 4067 | -10/Mines | Entered Materials 4067 | -9/Materials | Accompanied by 2 allies 4067 | -9/Materials | Evolved 2 slots: Propulsion x1, Utility x1 4072 | -9/Materials | Led the pair of lost Derelicts to an unsafe place 5022 | -9/Materials | Discovered new exit (range 16) 5412 | -9/Materials | Repaired Lgt. Treads 5473 | -9/Materials | Discovered new exit (range 6) 5864 | -9/Materials | Discovered new exit (range 8) 6351 | -9/Materials | Repaired Lgt. Treads 6369 | -9/Materials | Discovered new exit (range 16) 6868 | -9/Materials | Entered Mines 6904 | -9/Mines | Received a Rocket Launcher from a helpful Derelict 7369 | -9/Mines | Assembled infested the area 7374 | -9/Mines | Assisted by a Guerilla fighting off Assembled 7411 | -9/Mines | Destroyed 15 combat bots 7448 | -9/Mines | Learned location of Zion (-7) 7509 | -9/Mines | Met a Derelict shopkeep closing up shop 7561 | -9/Mines | Core integrity fell below 50% 7579 | -9/Mines | Lost 3 parts (1n2u) 7590 | -9/Mines | Learned Materials emergency access door positions 7613 | -9/Mines | A Derelict revealed a hidden shortcut to a safe place 8144 | -9/Mines | Discovered new exit (range 6) 8237 | -9/Mines | Deemed a non-threat by the Exiles lab entrance 8240 | -9/Mines | Discovered new exit (range 5) 8249 | -9/Mines | Entered Exiles 8315 | -9/Exiles | Met 8R-AWN 8353 | -9/Exiles | Met EX-HEX 8447 | -9/Exiles | Met EX-DEC 8666 | -9/Exiles | Discovered new exit (range 11) 8905 | -9/Exiles | Met EX-BIN 8924 | -9/Exiles | Aligned with FarCom system 8925 | -9/Exiles | Given EX-Vault access code 8966 | -9/Exiles | Opened EX-Vault 8985 | -9/Exiles | Found Firepult 9020 | -9/Exiles | Warned to stay clear of 0b10 Research branches 9394 | -9/Exiles | Attacked by the Exiles 9622 | -9/Exiles | Destroyed 8R-AWN 9630 | -9/Exiles | Found Prototype Device 9630 | -9/Exiles | Identified AS-neutralizer No. 17b 9780 | -9/Exiles | Found Prototype Processor 9786 | -9/Exiles | Found Prototype Ballistic Gun 9786 | -9/Exiles | Identified 8R-AWN's Boregun 9792 | -9/Exiles | Found 8R-AWN's Boregun 10067 | -9/Exiles | Destroyed EX-HEX 10085 | -9/Exiles | Destroyed EX-BIN 10175 | -9/Exiles | Destroyed EX-DEC 10199 | -9/Exiles | Found Prototype Processor 10221 | -9/Exiles | Found Prototype Device 10221 | -9/Exiles | Identified System Purifier 10257 | -9/Exiles | Identified Exp. Core Analyzer 10258 | -9/Exiles | Identified Exp. Targeting Computer 10661 | -9/Exiles | Build established: Scavenger-Mutant 10957 | -9/Exiles | Entered Mines 11030 | -8/Mines | AD-0RF came to Exiles' defense 11047 | -8/Mines | Core integrity fell below 20% 11184 | -8/Mines | Found Prototype Special Weapon 11185 | -8/Mines | Identified AD-0RF's Magmablaster 11274 | -8/Mines | Destroyed by G-47 Trooper with Particle Gun Last Messages --------------- 11253_ K-01 Serf collects debris. 11254_ HV Slug penetrates G-47 Trooper. 11254_ HV Slug penetrates Wall. 11254_ HV Slug penetrates G-47 Trooper. 11254_ HV Slug penetrates Wall. 11255_ Wall collapses. 11257_ HV Slug penetrates Wall. 11257_ HV Slug penetrates G-47 Trooper. 11257_ G-47 Trooper suffers critical hit (Destroy). 11257_ G-47 Trooper destroyed. 11257_ HV Slug penetrates Wall. 11257_ K-01 Serf collects debris. 11271_ HV Slug penetrates Wall. 11271_ HV Slug penetrates L-31 Rogue. 11271_ HV Slug penetrates Wall. 11271_ K-01 Serf collects debris. 11274_ HV Slug penetrates Wall. 11274_ HV Slug penetrates L-31 Rogue. 11274_ HV Slug penetrates Wall. 11274_ Critical hit (Burn: +37). Map ----- +----------------------------------------------------+ | ?????????????????????????????????????????????????? | | ?????????????????????????????????????????????????? | | ?????????????????????????????????????????????????? | | ?????????????????????????????????????????????????? | | ?????????????????????????????????????????????????? | | ?????????????????????????????????????????????????? | | ?????????????????????????????????????????????????? | | ?????????????????????????????????????????????????? | | ???????????????????? ????????????????????????????? | | ??????????????????? #???????????????????????????? | | ??????????????????? #???????????????????????????? | | ??????????????????# #???????????????????????????? | | ????#?????????????# #???????????????????????????? | | ???? ?????????????# #???????????????????????????? | | ???? #????????????# #???????????????????????????? | | ???? #????????????# #####???????????????????????? | | #### #????????????# ## ##??????????????????????? | | # # #???####?????# ## #??????????????????????? | | ######??## ##????# ## #### ?????????????????? | | =%! ##?# #???## r## ??????????????????? | | *| #### #??## # #?????????????????????? | | #### r #?????????????????????? | | % % ## k #?????????????????????? | | #### % % ##????????????????????? | | ##?# =#[ ##???????????????? | | #??##### k @[%%%[ ; ;#?????????????? | | #??????## ## ! =####???????????????? | | #???????####### ##?# l#;#?????????????????? | | #?????????????#####??? #??????????????????? | | #####?????????????????????? #?????????????????? | | #??????????????????????????? g ????????????????? | | ####????????????????????????? # ???????????????? | | #????????????????????????? ##? ??????????????? | | ### #??????????????????????????#???#?????????????? | | ??# #??####??????????????????????????????????????? | | ??# #??# ##?????????????????????????????????????? | | ### ####*! #?????????????????????????????????????? | | " [ = !##????????#???????????????????????????? | | ########=/ ###????? ##??????????????????????????? | | ???????# ###### ##?????????????????????????? | | ???????## #?????????????????????????? | | ????????## #??????????????????????????? | | ?????????## ##??????????????????????????? | | ??????????## ##???????????????????????????? | | ???????????##### ##????????????????????????????? | | ???????????????#####?????????????????????????????? | | ?????????????????????????????????????????????????? | | ?????????????????????????????????????????????????? | | ?????????????????????????????????????????????????? | | | +----------------------------------------------------+ Best States ------------- Heat Dissipation 54 Energy Generation 19 Energy Capacity 310 Matter Stores 300 Matter Capacity 300 Sight Range 16 Terrain Scan Density 10 Armor Coverage 450 Weapon Cycling 25 Evasion (%) 50 Recoil Reduction 3 Salvage Targeting 1 Item Schematics ----------------- Arm. Treads | -9/Materials | Scanalyzed Salvage Targeting Computer | -9/Materials | Scanalyzed Spread Laser | -9/Materials | Scanalyzed Robot Schematics ------------------ None Fabricated ------------ Nothing Alien Tech Used ----------------- None Achievements -------------- None Challenges ------------ None Game ------ Seed AbsorptionArmoredChainsword Manual? 0 Play Time 01:00:16 Cumulative 107.3 hours Start 2023.11.14 @ 21:22:53 End 2023.11.14 @ 22:24:56 Sessions 1 Manual Loads 0 Difficulty Rogue Special Mode None Game No. 32 Rogue 32 Adventurer 0 Explorer 0 Win Type - Total 4 Types 3/0/1/0/0/0/0/0/0 Lore% 59 Gallery% 69 Achievement% 59 Wizard Run 0 Options --------- ASCII 0 Keyboard 1 Movement Numpad Keybinds 0 Fullscreen 1 Font 12/Terminus Map View 83x54 Tactical HUD 1 Map Filters NONE Filters NONE Steam 0 RUN: 29839594-7a0d-40d0-a9b5-bfdaaa0e8cda